bitfinex/quotes_ETHUSD_20230902
["timestamp","ask_amount","ask_price","bid_price","bid_amount"]
[1693650869882,3.0,1635.6,1635.4,1.60276188]
[1693650874564,3.0,1635.6,1635.5,1.70348516]
[1693650874798,3.0,1635.6,1635.5,0.64110475]
[1693650880507,3.0,1635.6,1635.5,1.60276188]
[1693650880723,3.0,1635.6,1635.5,1.70348516]
[1693650881031,3.0,1635.6,1635.5,2.66514229]
[1693650881194,3.0,1635.6,1635.5,1.60276188]
[1693650881615,2.99127,1635.6,1635.5,1.60276188]
[1693650883804,2.99127,1635.6,1635.5,2.02403754]
[1693650884119,2.99127,1635.6,1635.5,0.96165713]
[1693650884326,2.99127,1635.6,1635.5,1.60156672]
[1693650884836,2.99127,1635.6,1635.5,2.02403754]
[1693650885235,2.99127,1635.6,1635.5,1.60156847]
[1693650885596,2.99127,1635.6,1635.5,2.02403754]
[1693650885814,2.99127,1635.6,1635.5,0.96165713]
[1693650886010,2.99127,1635.6,1635.5,2.02403754]
[1693650886411,2.99127,1635.6,1635.5,0.96165713]
[1693650887243,2.99127,1635.6,1635.5,2.02403754]
[1693650887451,2.99127,1635.6,1635.5,0.96165713]
[1693650889111,2.99127,1635.6,1635.5,2.02403754]
[1693650889336,2.99127,1635.6,1635.5,0.96165713]
[1693650892620,2.99127,1635.6,1635.5,0.95966145]
[1693650893115,2.99127,1635.6,1635.5,1.59943734]
[1693650894035,2.99127,1635.6,1635.5,2.66166004]
[1693650894942,2.99127,1635.6,1635.5,1.59943734]
[1693650898557,2.99127,1635.6,1635.5,1.70199859]
[1693650899055,2.99127,1635.6,1635.5,0.63977589]
[1693650899553,2.99127,1635.6,1635.5,1.70199859]
[1693650899858,2.99127,1635.6,1635.5,1.0622227]
[1693650900356,2.99127,1635.6,1635.4,1.70199859]
[1693650900558,2.99127,1635.6,1635.5,1.0622227]
[1693650900718,2.99127,1635.6,1635.4,0.63977589]
[1693650901056,5.19387,1635.6,1635.4,0.63977589]
[1693650904179,5.19387,1635.6,1635.4,1.59943734]
[1693650907805,5.19387,1635.6,1635.5,0.63977589]
[1693650908308,5.19387,1635.6,1635.4,1.59943734]
[1693650908788,5.19387,1635.6,1635.5,0.63977589]
[1693650914363,5.19387,1635.6,1635.5,1.0622227]
[1693650914664,5.19387,1635.6,1635.4,1.59943734]
[1693650920089,5.19387,1635.6,1635.5,1.0622227]
[1693650920473,5.19387,1635.6,1635.4,0.63977589]
[1693650927521,5.19387,1635.6,1635.4,1.70299846]
[1693650927815,5.19387,1635.6,1635.5,1.06235331]
[1693650928193,5.19387,1635.6,1635.4,0.64064515]
[1693650932525,2.99127,1635.6,1635.4,0.64064515]
[1693650932909,0.46765914,1635.5,1635.4,1.60161287]
[1693650933115,0.47425076,1635.5,1635.4,1.60161287]
[1693650933905,0.46765914,1635.5,1635.4,1.60161287]
[1693650937205,0.46765914,1635.5,1635.4,2.02359432]
[1693650937527,2.99127,1635.6,1635.4,2.02359432]
[1693650937730,2.99127,1635.6,1635.5,1.70316639]
[1693650937890,2.99127,1635.6,1635.5,0.64083765]
[1693650938093,3.4612392,1635.6,1635.5,0.64083765]
[1693650941029,3.46786632,1635.6,1635.5,0.64083765]
[1693650943111,3.46786632,1635.6,1635.5,1.60210323]
[1693650945036,3.46786632,1635.6,1635.5,2.02359432]
[1693650945528,3.46786632,1635.6,1635.5,0.96126558]
[1693650946931,3.46786632,1635.6,1635.5,0.96207914]
[1693650949341,3.46786632,1635.6,1635.5,1.6034464]
[1693650950429,3.46786632,1635.6,1635.5,0.96207914]
[1693650950626,3.46786632,1635.6,1635.5,2.02439289]
[1693650950821,3.46786632,1635.6,1635.5,0.96207914]
[1693650953525,3.46786632,1635.6,1635.5,2.24485132]
[1693650954270,3.46786632,1635.6,1635.5,2.02439289]
[1693650954563,3.46786632,1635.6,1635.5,2.24485132]
[1693650955122,3.46786632,1635.6,1635.5,0.96207914]
[1693650955721,3.46786632,1635.6,1635.5,2.24485132]
[1693650956151,3.46786632,1635.6,1635.5,0.96207914]
[1693650958521,3.46786632,1635.6,1635.5,2.02439289]
[1693650958877,3.46786632,1635.6,1635.5,0.96207914]
[1693650959546,3.46786632,1635.6,1635.5,2.02439289]
[1693650959943,3.46786632,1635.6,1635.5,0.96207914]
[1693650960548,3.46786632,1635.6,1635.5,2.24485132]
[1693650963638,3.46786632,1635.6,1635.5,2.02439289]
[1693650964032,3.46786632,1635.6,1635.5,0.96207914]
[1693650971060,3.46786632,1635.6,1635.5,1.70303678]
[1693650971433,3.46786632,1635.6,1635.5,0.64072303]
[1693650977093,3.46786632,1635.6,1635.5,1.60280217]
[1693650979188,3.46786632,1635.6,1635.5,0.64072303]
[1693650979519,4.19522295,1635.6,1635.5,0.64072303]
[1693650982566,3.46786632,1635.6,1635.5,0.64072303]
[1693650995513,3.46786632,1635.6,1635.5,1.60280217]
[1693650995678,3.46786632,1635.6,1635.5,0.64072303]
[1693650995875,3.46786632,1635.6,1635.5,1.60280217]
[1693651007509,3.46786632,1635.6,1635.5,0.96075474]
[1693651007804,3.46786632,1635.6,1635.5,1.60125986]
[1693651008017,3.46786632,1635.6,1635.5,1.60127518]
[1693651009110,3.46786632,1635.6,1635.5,1.70283676]
[1693651009321,3.81465295,1635.6,1635.5,1.70283676]
[1693651009900,3.81465295,1635.6,1635.5,0.64052044]
[1693651016143,3.81465295,1635.6,1635.5,1.60127518]
[1693651016841,3.46786632,1635.6,1635.5,1.60127518]
[1693651017224,3.46786632,1635.6,1635.5,1.70283676]
[1693651017423,3.46786632,1635.6,1635.5,0.64052044]
[1693651027677,3.46786632,1635.6,1635.5,1.60127518]
[1693651030363,3.46786632,1635.6,1635.5,6.60127518]
[1693651030542,3.46786632,1635.6,1635.5,7.6635915]
[1693651050099,3.46786632,1635.6,1635.5,7.02307106]
[1693651062973,0.47659632,1635.6,1635.5,7.02307106]
[1693651068613,3.47659632,1635.6,1635.5,7.02307106]
[1693651091443,3.47659632,1635.6,1635.5,7.66410433]
[1693651091611,3.47659632,1635.6,1635.5,7.66410455]
[1693651091812,3.47659632,1635.6,1635.5,7.66409285]
[1693651092360,3.47659632,1635.6,1635.5,7.02307106]
[1693651092968,3.47659632,1635.6,1635.5,7.66409754]
[1693651093357,3.47659632,1635.6,1635.5,7.02307106]
[1693651093674,3.47659632,1635.6,1635.5,7.66401258]
[1693651093951,3.47659632,1635.6,1635.5,7.66398614]
[1693651094451,3.47659632,1635.6,1635.5,7.02307106]
[1693651094828,3.47659632,1635.6,1635.5,7.66398681]
[1693651095351,3.47659632,1635.6,1635.5,7.02307106]
[1693651095649,3.47659632,1635.6,1635.5,7.66398667]
[1693651095848,3.47659632,1635.6,1635.5,7.66397981]
[1693651118095,3.39243704,1635.6,1635.5,7.66397981]
[1693651120998,3.38580992,1635.6,1635.5,7.66397981]
[1693651121994,3.39168199,1635.6,1635.5,7.66397981]
[1693651124792,4.21085019,1635.6,1635.5,7.66397981]
[1693651136506,3.87168199,1635.6,1635.5,7.66397981]
[1693651136835,3.87168199,1635.6,1635.5,7.02307106]
[1693651140119,6.95353603,1635.6,1635.5,7.02307106]
[1693651140288,6.95353603,1635.6,1635.5,7.66442209]
[1693651144532,8.51953603,1635.6,1635.5,7.66442209]
[1693651144822,9.64523865,1635.6,1635.5,6.70366735]
[1693651144987,9.64523865,1635.6,1635.5,6.06231632]
[1693651154012,12.64523865,1635.6,1635.5,6.06231632]
[1693651154211,12.64523865,1635.6,1635.5,6.0623907]
[1693651154534,12.64523865,1635.6,1635.5,5.0]
[1693651176791,11.51953603,1635.6,1635.5,5.0]
[1693651177099,6.39168199,1635.6,1635.5,5.0]
[1693651177390,3.39168199,1635.6,1635.5,5.0]
[1693651177596,3.39168199,1635.6,1635.5,6.06239068]
[1693651177750,3.02138199,1635.6,1635.5,6.06239068]
[1693651177983,2.05099825,1636.0,1635.5,6.70374171]
[1693651178183,0.00519322,1635.6,1635.5,5.64135103]
[1693651178386,0.00519322,1635.6,1635.5,6.7036695]
[1693651179147,0.33263938,1635.9,1635.5,6.7036695]
[1693651179338,0.33263938,1635.9,1635.6,1.06231847]
[1693651181224,0.00521627,1635.8,1635.6,1.06231847]
[1693651182076,0.33263938,1635.9,1635.6,1.06231847]
[1693651183130,0.00521763,1635.8,1635.6,1.06231847]
[1693651184330,0.33263938,1635.9,1635.6,1.06231847]
[1693651185234,0.00521627,1635.8,1635.6,1.06231847]
[1693651185826,0.32611516,1635.7,1635.6,1.06231847]
[1693651186324,0.3313231,1635.7,1635.6,1.06231847]
[1693651203770,0.3313231,1635.7,1635.6,1.7036695]
[1693651205838,0.3313231,1635.7,1635.6,1.06231847]
[1693651206938,0.3313231,1635.7,1635.6,1.7036695]
[1693651214686,0.3313231,1635.7,1635.6,2.66442424]
[1693651217893,0.3313231,1635.7,1635.6,2.02307321]
[1693651222916,0.3313231,1635.7,1635.6,3.30407953]
[1693651223911,0.3313231,1635.7,1635.6,2.02307321]
[1693651231541,0.3313231,1635.7,1635.5,5.0]
[1693651231690,0.3313231,1635.7,1635.6,2.02267514]
[1693651232732,0.63005823,1635.7,1635.6,2.02267514]
[1693651233102,0.63264866,1635.7,1635.6,3.30330246]
[1693651235938,1e-08,1635.7,1635.6,2.6629888]
[1693651236134,0.00749154,1635.7,1635.6,2.6629888]
[1693651236433,0.61281526,1635.7,1635.6,2.6629888]
[1693651236615,0.00749154,1635.7,1635.6,2.6629888]
[1693651237131,2.2014,1636.0,1635.6,2.6629888]
[1693651237310,2.2014,1636.0,1635.9,0.6401939]
[1693651237828,2.2014,1636.0,1635.6,1.8522]
[1693651238029,2.2014,1636.0,1635.8,1.60040538]
[1693651238194,2.20891471,1636.0,1635.8,1.60040538]
[1693651238391,2.20891471,1636.0,1635.8,2.66249392]
[1693651238597,2.20891471,1636.0,1635.9,1.06208854]
[1693651239196,2.20891471,1636.0,1635.8,1.60040538]
[1693651241435,2.15891471,1636.0,1635.8,1.60040538]
[1693651243539,0.60550284,1635.9,1635.8,1.60040538]
[1693651243737,0.60550284,1635.9,1635.8,0.64016215]
[1693651243941,0.60550284,1635.9,1635.8,1.60040538]
[1693651244107,0.61301495,1635.9,1635.8,1.60040538]
[1693651244439,0.61301495,1635.9,1635.8,1.70225069]
[1693651244735,0.61301495,1635.9,1635.8,2.66249392]
[1693651244905,0.61301495,1635.9,1635.8,1.70225069]
[1693651245105,0.61301495,1635.9,1635.8,0.64016215]
[1693651245306,0.61301495,1635.9,1635.8,1.60040538]
[1693651245505,0.61301495,1635.9,1635.8,0.64016215]
[1693651257767,0.61301495,1635.9,1635.8,0.96024323]
[1693651257921,0.61301495,1635.9,1635.8,1.6000212]
[1693651262263,0.61301495,1635.9,1635.8,2.02233177]
[1693651262562,0.61301495,1635.9,1635.8,2.66209742]
[1693651262966,0.61301495,1635.9,1635.8,1.60000888]
[1693651265870,0.61301495,1635.9,1635.8,1.70185419]
[1693651266166,0.61301495,1635.9,1635.8,1.06214486]
[1693651266480,0.61301495,1635.9,1635.8,0.63993341]
[1693651266795,0.61301495,1635.9,1635.8,1.06214486]
[1693651266983,0.61301495,1635.9,1635.7,1.59983353]
[1693651267153,0.61301495,1635.9,1635.8,0.63993341]
[1693651267474,0.61301495,1635.9,1635.7,1.59983353]
[1693651270686,0.61301495,1635.9,1635.8,0.63993341]
[1693651270856,0.61301495,1635.9,1635.8,1.06214486]
[1693651271055,0.61301495,1635.9,1635.7,1.59983353]
[1693651271473,0.61301495,1635.9,1635.8,1.70207827]
[1693651271800,0.61301495,1635.9,1635.8,0.63993341]
[1693651275848,0.61301495,1635.9,1635.5,5.0]
[1693651275992,0.61301495,1635.9,1635.8,0.64025027]
[1693651276190,2.91371495,1635.9,1635.8,0.64025027]
[1693651281624,2.91371495,1635.9,1635.8,1.70240431]
[1693651282162,2.91371495,1635.9,1635.8,0.64025027]
[1693651283525,2.91371495,1635.9,1635.8,1.60062568]
[1693651284035,2.91371495,1635.9,1635.8,0.96037541]
[1693651284235,2.91371495,1635.9,1635.7,2.34265459]
[1693651284236,2.91371495,1635.9,1635.6,0.64054857]
[1693651284437,2.91371495,1635.9,1635.6,1.70265572]
[1693651284643,2.91371495,1635.9,1635.8,0.64054857]
[1693651293094,2.91371495,1635.9,1635.8,1.60092398]
[1693651295077,2.91371495,1635.9,1635.8,0.96037541]
[1693651304869,2.91371495,1635.9,1635.8,1.60060525]
[1693651309907,0.61301495,1635.9,1635.8,1.60060525]
[1693651310208,0.61301495,1635.9,1635.8,2.24087596]
[1693651311408,0.61301495,1635.9,1635.8,2.02248256]
[1693651311608,0.61301495,1635.9,1635.8,2.24087596]
[1693651312114,0.61301495,1635.9,1635.8,2.02248256]
[1693651312573,0.61301495,1635.9,1635.8,2.02249847]
[1693651313007,0.61301495,1635.9,1635.8,0.96043409]
[1693651313911,0.61301495,1635.9,1635.8,2.24101288]
[1693651314411,0.61301495,1635.9,1635.8,2.02249847]
[1693651315206,0.61301495,1635.9,1635.8,0.96043409]
[1693651317837,0.61301495,1635.9,1635.8,2.34264317]
[1693651318187,0.61301495,1635.9,1635.8,1.28057879]
[1693651334022,3.69486899,1635.9,1635.8,1.28057879]
[1693651334230,6.51540213,1635.9,1635.8,1.70251396]
[1693651334403,6.51540213,1635.9,1635.8,1.06206438]
[1693651334927,6.51540213,1635.9,1635.7,0.64044958]
[1693651335233,3.56185404,1635.8,1635.7,0.64044958]
[1693651335741,0.60174256,1635.8,1635.7,1.70251396]
[1693651335937,0.60174256,1635.8,1635.7,0.64044958]
[1693651336137,0.00644534,1635.8,1635.7,0.64044958]
[1693651337205,4.1629869,1635.9,1635.7,0.64044958]
[1693651337438,1.01804125,1635.8,1635.7,0.64044958]
[1693651337737,0.60174256,1635.8,1635.7,0.64044958]
[1693651338254,0.00644562,1635.8,1635.7,0.64044958]
[1693651339152,7.24484094,1635.9,1635.7,0.64044958]
[1693651339973,2.5969869,1635.9,1635.7,0.64044958]
[1693651340179,0.00644696,1635.8,1635.7,0.64044958]
[1693651341173,2.2275,1635.9,1635.7,0.64044958]
[1693651341376,2.83074,1635.9,1635.7,0.64044958]
[1693651342177,0.00644562,1635.8,1635.7,0.64044958]
[1693651343172,2.2275,1635.9,1635.7,0.64044958]
[1693651344236,0.00644562,1635.8,1635.7,0.64044958]
[1693651345160,2.2275,1635.9,1635.7,0.64044958]
[1693651346174,0.00645692,1635.8,1635.7,0.64044958]
[1693651347176,2.2275,1635.9,1635.7,0.64044958]
[1693651348141,0.00645135,1635.8,1635.7,0.64044958]
[1693651349183,2.2275,1635.9,1635.7,0.64044958]
[1693651350242,0.00645135,1635.8,1635.7,0.64044958]
[1693651351186,2.2275,1635.9,1635.7,0.64044958]
[1693651352186,0.00645135,1635.8,1635.7,0.64044958]
[1693651352550,0.60821321,1635.8,1635.7,0.64044958]
[1693651355396,0.60821321,1635.8,1635.7,1.70251396]
[1693651356254,0.60821321,1635.8,1635.7,0.64044958]
[1693651360535,0.60821321,1635.8,1635.7,1.60094349]
[1693651364335,0.60821321,1635.8,1635.7,2.02255829]
[1693651364834,0.60821321,1635.8,1635.7,0.96049391]
[1693651365199,4.5042,1636.0,1635.7,0.96049391]
[1693651365535,4.5042,1636.0,1635.8,0.63997541]
[1693651366243,0.0064856,1635.9,1635.8,0.63997541]
[1693651367442,0.59650112,1635.9,1635.8,0.63997541]
[1693651373148,2.87460112,1635.9,1635.8,0.63997541]
[1693651375358,2.87460112,1635.9,1635.8,1.60046932]
[1693651377644,0.11350112,1636.0,1635.8,1.60046932]
[1693651377847,0.57036021,1635.9,1635.8,1.60046932]
[1693651378022,0.0060805,1636.1,1635.8,0.96049391]
[1693651378355,0.0060805,1636.1,1635.9,0.64035269]
[1693651378853,0.0060805,1636.1,1636.0,0.64035269]
[1693651381453,0.01232474,1636.1,1636.0,0.64035269]
[1693651385363,0.58292186,1636.1,1636.0,0.64035269]
[1693651386263,0.58292186,1636.1,1635.9,1.6008466]
[1693651395277,0.58292186,1636.1,1636.0,1.70241707]
[1693651395632,0.58292186,1636.1,1636.0,0.64035269]
[1693651397500,0.58292186,1636.1,1636.0,1.70241707]
[1693651397661,0.58292186,1636.1,1636.0,0.64035269]
[1693651416735,0.58292186,1636.1,1636.0,1.6008466]
[1693651417025,0.58292186,1636.1,1636.0,1.70241707]
[1693651417333,0.58292186,1636.1,1636.0,2.66291098]
[1693651418002,0.58292186,1636.1,1636.0,1.6008466]
[1693651421434,0.58292186,1636.1,1636.0,0.96049391]
[1693651424534,0.58292186,1636.1,1636.0,2.2410727]
[1693651425438,0.58292186,1636.1,1636.0,0.96049391]
[1693651425645,0.58292186,1636.1,1636.0,2.2410727]
[1693651427638,0.58292186,1636.1,1636.0,2.02255829]
[1693651427941,0.58292186,1636.1,1636.0,3.30313708]
[1693651428293,0.58292186,1636.1,1636.0,2.2410727]
[1693651428832,0.58295966,1636.1,1636.0,2.2410727]
[1693651437540,0.98789664,1636.1,1636.0,2.2410727]
[1693651439304,0.98789664,1636.1,1636.0,1.28057879]
[1693651450450,0.58295966,1636.1,1636.0,1.28057879]
[1693651457027,2.55389664,1636.1,1636.0,2.66441523]
[1693651457235,2.96026261,1636.1,1636.0,2.66441523]
[1693651457771,2.96026261,1636.1,1636.0,1.60235085]
[1693651457962,2.96026261,1636.1,1636.0,1.70304505]
[1693651458161,2.96026261,1636.1,1636.0,0.64098067]
[1693651465474,2.96026261,1636.1,1636.0,1.70304505]
[1693651465674,2.55389664,1636.1,1636.0,0.64098067]
[1693651466781,2.55389664,1636.1,1635.9,1.60235085]
[1693651467108,1.566,1636.0,1635.9,1.60235085]
[1693651467268,2.13224336,1636.0,1635.9,1.60235085]
[1693651468307,2.13808855,1636.0,1635.9,1.60235085]
[1693651471810,2.13808855,1636.0,1635.9,0.64098067]
[1693651474409,2.13808855,1636.0,1635.9,1.70304505]
[1693651474609,2.13808855,1636.0,1635.9,0.64098067]
[1693651475626,0.57208855,1636.0,1635.9,0.64098067]
[1693651480762,2.13808855,1636.0,1635.9,0.64098067]
[1693651481061,2.13808855,1636.0,1635.9,1.70304505]
[1693651481259,2.13808855,1636.0,1635.9,0.64098067]
[1693651490792,2.13808855,1636.0,1635.9,1.60235085]
[1693651495188,2.93547111,1636.0,1635.9,1.70304505]
[1693651496084,2.93547111,1636.0,1635.9,0.64098067]
[1693651499066,2.93547111,1636.0,1635.9,1.70304505]
[1693651499274,2.93547111,1636.0,1635.9,0.64098067]
[1693651499677,2.93547111,1636.0,1635.6,1.5335]
[1693651499882,2.93547111,1636.0,1635.9,0.64050184]
[1693651500081,4.92837111,1636.0,1635.9,0.64050184]
[1693651500397,2.93547111,1636.0,1635.9,0.64050184]
[1693651502472,2.93547111,1636.0,1635.9,0.64062464]
[1693651503305,2.54201002,1636.0,1635.9,0.64062464]
[1693651503758,2.13808855,1636.0,1635.9,0.64062464]
[1693651505126,0.57208855,1636.0,1635.9,0.64062464]
[1693651505330,0.57208855,1636.0,1635.9,1.60156161]
[1693651508744,0.57208855,1636.0,1635.9,1.70272452]
[1693651508745,5.61257144,1636.0,1635.9,1.70272452]
[1693651508944,6.09257144,1636.0,1635.9,1.06209988]
[1693651509156,6.70244119,1636.0,1635.9,1.06209988]
[1693651509351,6.70244119,1636.0,1635.8,0.64062464]
[1693651509527,1.566,1635.9,1635.8,0.64062464]
[1693651510035,2.10265651,1635.9,1635.8,0.64062464]
[1693651510238,2.10849909,1635.9,1635.8,0.64062464]
[1693651510445,2.77578426,1635.9,1635.8,0.64062464]
[1693651510945,5.8576383,1635.9,1635.8,0.64062464]
[1693651511149,6.3376383,1635.9,1635.8,1.70272452]
[1693651511520,6.3376383,1635.9,1635.8,0.64062464]
[1693651512212,6.3376383,1635.9,1635.7,2.66366149]
[1693651513214,0.63376383,1635.8,1635.7,2.66366149]
[1693651513415,5.67035313,1635.9,1635.7,2.66366149]
[1693651514233,5.67035313,1635.9,1635.8,1.06209988]
[1693651514814,5.67035313,1635.9,1635.7,1.70272452]
[1693651515552,2.10849909,1635.9,1635.7,1.70272452]
[1693651518758,2.10849909,1635.9,1635.8,1.06209988]
[1693651518964,2.10849909,1635.9,1635.7,0.64062464]
[1693651519280,2.10849909,1635.9,1635.7,1.70272452]
[1693651519453,4.02619909,1635.9,1635.8,1.06209988]
[1693651519651,4.48980597,1635.9,1635.7,0.64062464]
[1693651519880,4.48980597,1635.9,1635.7,1.70272452]
[1693651520078,4.48980597,1635.9,1635.8,1.06209988]
[1693651520987,4.48980597,1635.9,1635.7,0.64062464]
[1693651522155,0.54249909,1635.9,1635.7,0.64062464]
[1693651524462,0.54249909,1635.9,1635.7,1.60156161]
[1693651529931,0.54249909,1635.9,1635.8,1.70272452]
[1693651530112,0.54249909,1635.9,1635.8,0.64062464]
[1693651532544,0.73583344,1635.9,1635.8,0.64062464]
[1693651541573,0.73583344,1635.9,1635.8,0.96093697]
[1693651541726,0.73583344,1635.9,1635.8,2.02303685]
[1693651541926,0.73583344,1635.9,1635.8,0.96093697]
[1693651573160,0.73583344,1635.9,1635.8,2.24218626]
[1693651581195,0.73583344,1635.9,1635.8,1.28124929]
[1693651584732,0.73583344,1635.9,1635.8,2.88281091]
[1693651586521,0.73583344,1635.9,1635.8,3.91793582]
[1693651586734,0.73583344,1635.9,1635.8,4.9800357]
[1693651588427,0.0061522,1636.1,1635.9,0.63722747]
[1693651588590,0.0061522,1636.1,1636.0,1.28017242]
[1693651588921,0.0061522,1636.1,1636.0,2.3422723]
[1693651589423,0.01305901,1636.1,1636.0,2.3422723]
[1693651590584,0.01305901,1636.1,1636.0,3.3018605]
[1693651592520,0.01305901,1636.1,1636.0,2.02168808]
[1693651593186,0.0061522,1636.1,1636.0,2.02168808]
[1693651594335,0.0061522,1636.1,1636.0,6.38371454]
[1693651594541,0.0061522,1636.1,1636.0,6.38302631]
[1693651595333,0.0061522,1636.1,1636.0,5.42412634]
[1693651595535,0.0061522,1636.1,1636.0,6.38287636]
[1693651595912,0.64833466,1636.1,1636.0,5.42412634]
[1693651596238,0.65472891,1636.1,1636.0,5.42412634]
[1693651598935,0.01254645,1636.1,1636.0,10.31016944]
[1693651599140,0.63520283,1636.1,1636.0,10.31016944]
[1693651599449,0.0061522,1636.1,1636.0,10.31016944]
[1693651600640,0.0061522,1636.1,1636.0,8.70995392]
[1693651601338,0.10907359,1636.6,1636.5,3.0]
[1693651601498,0.10907359,1636.6,1636.5,11.70995392]
[1693651601699,0.10907359,1636.6,1636.5,11.73867734]
[1693651602501,0.10907359,1636.6,1636.5,13.30467734]
[1693651602699,0.10907359,1636.6,1636.5,11.70995392]
[1693651603100,0.10907359,1636.6,1636.5,5.65483287]
[1693651603343,0.10907359,1636.6,1636.5,3.92915381]
[1693651603515,0.10907359,1636.6,1636.5,2.65483287]
[1693651603901,0.10907359,1636.6,1636.5,1.59273299]
[1693651604504,0.10907359,1636.6,1636.4,2.97576799]
[1693651604704,0.10907359,1636.6,1636.4,6.05762203]
[1693651604906,0.10907359,1636.6,1636.5,1.06209988]
[1693651605751,1.67507359,1636.6,1636.5,1.06209988]
[1693651606528,1.67507359,1636.6,1636.5,2.65364338]
[1693651606737,1.67507359,1636.6,1636.5,1.06209988]
[1693651607925,1.67507359,1636.6,1636.5,2.65329042]
[1693651608316,2.06663542,1636.6,1636.5,2.65327641]
[1693651608530,1.95756183,1636.6,1636.5,2.65327641]
[1693651608807,2.57743589,1636.6,1636.5,3.92636855]
[1693651609044,2.57743589,1636.6,1636.5,2.33519202]
[1693651609211,2.58265259,1636.6,1636.5,2.33519202]
[1693651609420,2.58265259,1636.6,1636.5,2.86426867]
[1693651609745,2.58265259,1636.6,1636.5,2.65327641]
[1693651609955,2.58265259,1636.6,1636.5,2.8641906]
[1693651610259,2.58265259,1636.6,1636.5,2.65327641]
[1693651610442,2.58265259,1636.6,1636.5,1.59117653]
[1693651615321,2.58265259,1636.6,1636.5,2.65327641]
[1693651615511,2.58265259,1636.6,1636.5,1.59117653]
[1693651616431,0.88395541,1636.6,1636.5,1.59117653]
[1693651617037,1.25373223,1636.6,1636.5,1.59117653]
[1693651622277,1.25373223,1636.6,1636.4,1.91366811]
[1693651622586,1.566,1636.5,1636.4,2.97576799]
[1693651622737,0.99486758,1636.6,1636.5,0.69884148]
[1693651622942,1.94099352,1636.6,1636.5,1.76094136]
[1693651623177,1.94099352,1636.6,1636.5,3.67460947]
[1693651623380,2.53627967,1636.6,1636.5,1.76094136]
[1693651623674,2.53627967,1636.6,1636.5,3.67460947]
[1693651628386,1.89929669,1636.6,1636.5,3.67460947]
[1693651628574,0.7668826,1636.6,1636.5,2.97576799]
[1693651629080,0.7668826,1636.6,1636.5,1.91366811]
[1693651629282,1.11894247,1636.6,1636.5,3.92985096]
[1693651629495,1.11894247,1636.6,1636.5,2.33674496]
[1693651629646,1.11894247,1636.6,1636.5,2.2309733]
[1693651630178,1.11894247,1636.6,1636.5,2.23097009]
[1693651630341,1.11894247,1636.6,1636.5,2.23097288]
[1693651630683,1.11894247,1636.6,1636.5,2.3371514]
[1693651630893,1.11894247,1636.6,1636.5,3.29370409]
[1693651631184,1.11894247,1636.6,1636.5,2.3371514]
[1693651631381,1.11894247,1636.6,1636.5,3.29370331]
[1693651631688,1.11894247,1636.6,1636.5,2.3371514]
[1693651632043,1.11894247,1636.6,1636.5,2.23208341]
[1693651632459,1.11894247,1636.6,1636.5,3.29410728]
[1693651632661,1.11894247,1636.6,1636.5,2.2323087]
[1693651633852,1.11894247,1636.6,1636.5,2.3371514]
[1693651634084,1.11894247,1636.6,1636.5,1.27535282]
[1693651634283,0.77189866,1636.6,1636.5,1.27535282]
[1693651634482,0.77189866,1636.6,1636.5,2.65598961]
[1693651634988,0.77189866,1636.6,1636.5,1.59419103]
[1693651635863,0.77189866,1636.6,1636.5,2.65598961]
[1693651636101,0.77189866,1636.6,1636.5,1.59419103]
[1693651637995,0.77189866,1636.6,1636.5,2.65598961]
[1693651638351,0.77189866,1636.6,1636.5,1.59419103]
[1693651638692,0.77189866,1636.6,1636.5,2.33843025]
[1693651638693,1.11894247,1636.6,1636.5,2.33843025]
[1693651639401,1.11894247,1636.6,1636.5,1.27663167]
[1693651640206,1.11894247,1636.6,1636.5,2.33843025]
[1693651640406,1.11894247,1636.6,1636.5,1.27663167]
[1693651640718,1.11894247,1636.6,1636.5,2.23436077]
[1693651641512,1.11894247,1636.6,1636.5,2.01952768]
[1693651641663,1.11894247,1636.6,1636.5,0.9577291]
[1693651642013,0.77189866,1636.6,1636.5,0.9577291]
[1693651642196,0.77189866,1636.6,1636.5,2.23436077]
[1693651642394,0.77189866,1636.6,1636.5,1.27663167]
[1693651643582,0.77189866,1636.6,1636.5,2.23447912]
[1693651644560,0.77189866,1636.6,1636.5,2.01984541]
[1693651645069,0.77189866,1636.6,1636.5,0.95804683]
[1693651645400,0.7668826,1636.6,1636.5,0.95804683]
[1693651645706,0.7668826,1636.6,1636.5,2.01984541]
[1693651646068,0.7668826,1636.6,1636.5,0.95804683]
[1693651646268,0.77189866,1636.6,1636.5,0.95804683]
[1693651646482,0.77189866,1636.6,1636.5,1.70051203]
[1693651646766,1.11894247,1636.6,1636.5,0.63871345]
[1693651647006,1.11894247,1636.6,1636.5,1.70051203]
[1693651647182,1.11894247,1636.6,1636.5,0.63871345]
[1693651647670,1.11894247,1636.6,1636.4,0.95804683]
[1693651647671,1.566,1636.5,1636.4,0.95804683]
[1693651647871,3.47904381,1636.5,1636.4,1.59694745]
[1693651648108,4.07320895,1636.5,1636.4,1.59694745]
[1693651648311,4.07821696,1636.5,1636.4,1.59694745]
[1693651648491,4.07821696,1636.5,1636.4,1.59694677]
[1693651650697,4.07821696,1636.5,1636.4,0.63889994]
[1693651652386,4.07821696,1636.5,1636.4,1.70060127]
[1693651652802,4.07821696,1636.5,1636.4,0.63889994]
[1693651654746,4.07821696,1636.5,1636.4,1.70060127]
[1693651655318,4.07821696,1636.5,1636.4,0.63889994]
[1693651655517,4.07821696,1636.5,1636.4,1.70060127]
[1693651656251,4.07821696,1636.5,1636.4,0.63889994]
[1693651657871,4.07821696,1636.5,1636.4,1.70060127]
[1693651658054,4.07821696,1636.5,1636.4,0.63889994]
[1693651662371,2.51221696,1636.5,1636.4,0.63889994]
[1693651664285,2.51221696,1636.5,1636.4,1.59694677]
[1693651664286,2.16517315,1636.5,1636.4,1.59694677]
[1693651664489,2.16517315,1636.5,1636.4,2.01974816]
[1693651664684,1.57100801,1636.5,1636.4,0.95804683]
[1693651665282,1.566,1636.5,1636.4,0.95804683]
[1693651667276,1.516,1636.5,1636.4,0.95804683]
[1693651669888,1.516,1636.5,1636.4,1.59742676]
[1693651670193,2.08819423,1636.5,1636.4,2.01974816]
[1693651670360,2.09320224,1636.5,1636.4,2.01974816]
[1693651670560,2.09320224,1636.5,1636.4,0.95804683]
[1693651670786,2.09320224,1636.5,1636.4,1.59746436]
[1693651671497,2.09320224,1636.5,1636.4,0.95804683]
[1693651672983,2.09320224,1636.5,1636.4,1.70122032]
[1693651673990,2.09320224,1636.5,1636.4,0.63951899]
[1693651677188,2.09320224,1636.5,1636.4,1.59756582]
[1693651677551,2.09320224,1636.5,1636.4,2.01974816]
[1693651677751,2.09320224,1636.5,1636.4,0.95804683]
[1693651678083,1.52100801,1636.5,1636.4,1.59769649]
[1693651678288,1.516,1636.5,1636.4,1.59769649]
[1693651678495,1.516,1636.5,1636.4,0.95804683]
[1693651679602,1.516,1636.5,1636.4,2.2346785]
[1693651679754,1.516,1636.5,1636.4,2.01974816]
[1693651679958,1.516,1636.5,1636.4,0.95804683]
[1693651680198,1.516,1636.5,1636.4,2.2346785]